fUST/lending_fUST_20250830
["ID","MTS","AMOUNT","RATE_DAILY","PERIOD"]
[382203635,1756545038385,-500.0,0.00020126,2]
[382203638,1756545038399,-500.0,0.00020126,2]
[382203640,1756545038410,-500.0,0.00020126,2]
[382203642,1756545038419,-500.0,0.00020126,2]
[382203644,1756545038430,-211.27142243,0.00020126,2]
[382203646,1756545038440,-172.88153612,0.00020126,2]
[382203648,1756545038450,-500.0,0.00020126,2]
[382203650,1756545038461,-447.06480429,0.00020126,2]
[382203652,1756545038470,-500.0,0.00020126,2]
[382203654,1756545038480,-456.42696484,0.00020126,2]
[382203656,1756545038490,-500.0,0.00020126,2]
[382203658,1756545038499,-500.0,0.00020126,2]
[382203660,1756545038509,-500.0,0.00020126,2]
[382203662,1756545038521,-500.0,0.00020126,2]
[382203664,1756545038531,-500.0,0.00020126,2]
[382203666,1756545038541,-500.0,0.00020126,2]
[382203668,1756545038552,-500.0,0.00020126,2]
[382203670,1756545038562,-500.0,0.00020126,2]
[382203672,1756545038572,-500.0,0.00020126,2]
[382203674,1756545038582,-357.19013371,0.00020126,2]
[382203676,1756545038592,-500.0,0.00020126,2]
[382203678,1756545038602,-500.0,0.00020126,2]
[382203680,1756545038611,-500.0,0.00020126,2]
[382203682,1756545038622,-500.0,0.00020126,2]
[382203684,1756545038634,-500.0,0.00020126,2]
[382203686,1756545038645,-500.0,0.00020126,2]
[382203688,1756545038655,-500.0,0.00020126,2]
[382203690,1756545038665,-183.66131405,0.00020126,2]
[382203693,1756545038677,-500.0,0.00020126,2]
[382203695,1756545038687,-500.0,0.00020126,2]
[382203697,1756545038697,-500.0,0.00020126,2]
[382203699,1756545038706,-500.0,0.00020126,2]
[382203700,1756545038716,-500.0,0.00020126,2]
[382203702,1756545038725,-500.0,0.00020126,2]
[382203704,1756545038735,-500.0,0.00020126,2]
[382203706,1756545038745,-500.0,0.00020126,2]
[382203708,1756545038755,-500.0,0.00020126,2]
[382203710,1756545038765,-500.0,0.00020126,2]
[382203713,1756545038775,-500.0,0.00020126,2]
[382203715,1756545038784,-500.0,0.00020126,2]
[382203717,1756545038794,-500.0,0.00020126,2]
[382203719,1756545038804,-500.0,0.00020126,2]
[382203721,1756545038814,-500.0,0.00020126,2]
[382203723,1756545038824,-500.0,0.00020126,2]
[382203724,1756545038834,-500.0,0.00020126,2]
[382203727,1756545038844,-500.0,0.00020126,2]
[382203728,1756545038854,-500.0,0.00020126,2]
[382203731,1756545038864,-500.0,0.00020126,2]
[382203733,1756545038874,-500.0,0.00020126,2]
[382203734,1756545038883,-500.0,0.00020126,2]
[382203737,1756545038894,-500.0,0.00020126,2]
[382203738,1756545038903,-500.0,0.00020126,2]
[382203741,1756545038913,-500.0,0.00020126,2]
[382203743,1756545038923,-500.0,0.00020126,2]
[382203744,1756545038933,-500.0,0.00020126,2]
[382203746,1756545038942,-500.0,0.00020126,2]
[382203748,1756545038952,-506.73737917,0.00020126,2]
[382203750,1756545038962,-300.0,0.00020126,2]
[382203753,1756545038971,-300.0,0.00020126,2]
[382203755,1756545038981,-480.0,0.00020126,2]
[382203757,1756545038991,-480.0,0.00020126,2]
[382203758,1756545039000,-518.240209,0.00020127,2]
[382203760,1756545039011,-480.0,0.00020127,2]
[382203762,1756545039021,-564.1,0.00020127,2]
[382203764,1756545039030,-480.0,0.00020127,2]
[382203767,1756545039041,-1798.5,0.00020127,2]
[382203769,1756545039051,-1898.3,0.00020127,2]
[382203771,1756545039060,-1005.96,0.00020127,2]
[382203772,1756545039069,-1003.36,0.00020127,2]
[382203775,1756545039079,-480.0,0.00020127,2]
[382203777,1756545039090,-480.0,0.00020127,2]
[382203778,1756545039099,-480.0,0.00020127,2]
[382203780,1756545039108,-2571.69,0.00020127,2]
[382203783,1756545039118,-49746.96329281,0.00020127,2]
[382203785,1756545039128,-500.0,0.00020128,2]
[382203787,1756545039137,-500.0,0.00020128,2]
[382203790,1756545039147,-245.11074951,0.00020128,2]
[382203792,1756545039160,-480.0,0.00020128,2]
[382203793,1756545039170,-480.0,0.00020128,2]
[382203795,1756545039179,-981.06,0.00020128,2]
[382203797,1756545039189,-480.0,0.00020128,2]
[382203799,1756545039199,-1237.76,0.00020128,2]
[382203801,1756545039210,-1099.59,0.00020128,2]
[382203803,1756545039221,-706.8,0.00020128,2]
[382203805,1756545039231,-480.0,0.00020128,2]
[382203807,1756545039241,-480.0,0.00020128,2]
[382203809,1756545039251,-480.0,0.00020128,2]
[382203811,1756545039260,-1191.94,0.00020128,2]
[382203813,1756545039269,-4040.54,0.00020128,2]
[382203815,1756545039279,-480.0,0.00020128,2]
[382203818,1756545039289,-990.74,0.00020128,2]
[382203821,1756545039299,-480.0,0.00020128,2]
[382203825,1756545039312,-391.9738087,0.00020128,2]
[382203828,1756545039321,-3026.32,0.00020128,2]
[382203830,1756545039330,-480.0,0.00020128,2]
[382203831,1756545039340,-480.0,0.00020128,2]
[382203834,1756545039350,-1517.53,0.00020128,2]
[382203836,1756545039359,-2100.7,0.00020128,2]
[382203838,1756545039369,-480.0,0.00020128,2]
[382203841,1756545039379,-480.0,0.00020128,2]
[382203842,1756545039388,-480.0,0.00020128,2]
[382203844,1756545039398,-480.0,0.00020128,2]
[382203847,1756545039408,-1014.95,0.00020128,2]
[382203849,1756545039417,-480.0,0.00020128,2]
[382203851,1756545039427,-480.0,0.00020128,2]
[382203853,1756545039437,-480.0,0.00020128,2]
[382203855,1756545039446,-1256.79,0.00020128,2]
[382203857,1756545039455,-905.44,0.00020128,2]
[382203859,1756545039465,-909.16,0.00020128,2]
[382203861,1756545039475,-24825.41549347,0.00020129,2]
[382203863,1756545039484,-632.22,0.00020132,2]
[382203865,1756545039494,-1000.0,0.00020146,2]
[382203867,1756545039503,-224.04899515,0.00020147,2]
[382203869,1756545039513,-224.04899515,0.00020147,2]
[382203871,1756545039523,-256.012245,0.00020187,2]
[382203873,1756545039532,-2347.87260389,0.00020204,2]
[382203875,1756545039542,-151.0,0.00020215,2]
[382203877,1756545039551,-1000.0,0.00020215,2]
[382203879,1756545039560,-151.0,0.00020215,2]
[382203881,1756545039570,-1000.0,0.00020215,2]
[382203882,1756545039579,-151.0,0.00020215,2]
[382203885,1756545039589,-187.78006525,0.00020215,2]
[382203887,1756545039599,-151.0,0.00020215,2]
[382203889,1756545039608,-1000.0,0.00020215,2]
[382203891,1756545039617,-151.0,0.00020215,2]
[382203893,1756545039626,-151.0,0.00020215,2]
[382203895,1756545039636,-1000.0,0.00020215,2]
[382203896,1756545039645,-151.0,0.00020215,2]
[382203898,1756545039655,-151.0,0.00020215,2]
[382203900,1756545039664,-1000.0,0.00020215,2]
[382203902,1756545039673,-151.0,0.00020215,2]
[382203904,1756545039683,-151.0,0.00020215,2]
[382203906,1756545039692,-1000.0,0.00020215,2]
[382203908,1756545039702,-151.0,0.00020215,2]
[382203910,1756545039712,-151.0,0.00020215,2]
[382203912,1756545039722,-1000.0,0.00020215,2]
[382203914,1756545039732,-151.0,0.00020215,2]
[382203916,1756545039742,-1000.0,0.00020215,2]
[382203918,1756545039751,-151.0,0.00020215,2]
[382203920,1756545039760,-151.0,0.00020215,2]
[382203923,1756545039770,-1000.0,0.00020215,2]
[382203925,1756545039779,-151.0,0.00020215,2]
[382203926,1756545039788,-151.0,0.00020215,2]
[382203928,1756545039798,-151.0,0.00020215,2]
[382203930,1756545039807,-151.0,0.00020215,2]
[382203932,1756545039816,-151.0,0.00020215,2]
[382203934,1756545039827,-151.0,0.00020215,2]
[382203936,1756545039837,-151.0,0.00020215,2]
[382203938,1756545039846,-151.0,0.00020215,2]
[382203940,1756545039855,-500.0,0.00020215,2]
[382203942,1756545039864,-155.26560165,0.00020215,2]
[382203944,1756545039874,-151.0,0.00020215,2]
[382203946,1756545039883,-500.0,0.00020215,2]
[382203948,1756545039893,-500.0,0.00020215,2]
[382203950,1756545039902,-500.0,0.00020215,2]
[382203952,1756545039911,-1000.0,0.00020215,2]
[382203954,1756545039920,-500.0,0.00020215,2]
[382203956,1756545039929,-500.0,0.00020215,2]
[382203958,1756545039939,-390.61850996,0.00020215,2]
[382203960,1756545039949,-500.0,0.00020215,2]
[382203962,1756545039958,-1000.0,0.00020215,2]
[382203964,1756545039968,-500.0,0.00020215,2]
[382203967,1756545039978,-752.19282963,0.00020215,2]
[382203968,1756545039987,-500.0,0.00020215,2]
[382203970,1756545039996,-500.0,0.00020215,2]
[382203972,1756545040006,-500.0,0.00020215,2]
[382203974,1756545040015,-500.0,0.00020215,2]
[382203976,1756545040024,-500.0,0.00020215,2]
[382203978,1756545040034,-500.0,0.00020215,2]
[382203980,1756545040044,-500.0,0.00020215,2]
[382203982,1756545040053,-306.08000739,0.00020217,2]
[382203984,1756545040062,-492.97,0.0002022,2]
[382203986,1756545040072,-480.0,0.0002022,2]
[382203988,1756545040081,-480.0,0.0002022,2]
[382203990,1756545040091,-480.0,0.0002022,2]
[382203993,1756545040101,-480.0,0.0002022,2]
[382203994,1756545040113,-480.0,0.0002022,2]
[382203996,1756545040122,-480.0,0.0002022,2]
[382203998,1756545040133,-480.0,0.0002022,2]
[382204001,1756545040144,-480.0,0.0002022,2]
[382204003,1756545040154,-480.0,0.0002022,2]
[382204005,1756545040165,-480.0,0.0002022,2]
[382204007,1756545040175,-480.0,0.0002022,2]
[382204009,1756545040184,-480.0,0.0002022,2]
[382204011,1756545040194,-900.73,0.0002022,2]
[382204013,1756545040203,-480.0,0.0002022,2]
[382204015,1756545040212,-1212.22,0.0002022,2]
[382204017,1756545040222,-480.0,0.0002022,2]
[382204019,1756545040231,-1011.47,0.0002022,2]
[382204020,1756545040240,-988.06,0.0002022,2]
[382204022,1756545040250,-480.0,0.0002022,2]
[382204024,1756545040259,-480.0,0.0002022,2]
[382204026,1756545040268,-480.0,0.0002022,2]
[382204029,1756545040278,-493.45,0.0002022,2]
[382204031,1756545040288,-480.0,0.0002022,2]
[382204033,1756545040297,-1081.33,0.0002022,2]
[382204034,1756545040311,-480.0,0.0002022,2]
[382204036,1756545040321,-500.0,0.00020221,2]
[382204038,1756545040330,-500.0,0.00020221,2]
[382204040,1756545040339,-500.0,0.00020221,2]
[382204042,1756545040348,-500.0,0.00020221,2]
[382204044,1756545040358,-500.0,0.00020221,2]
[382204045,1756545040367,-500.0,0.00020221,2]
[382204046,1756545040378,-500.0,0.00020221,2]
[382204047,1756545040387,-500.0,0.00020221,2]
[382204048,1756545040397,-500.0,0.00020221,2]
[382204049,1756545040407,-500.0,0.00020221,2]
[382204050,1756545040416,-382.39546958,0.00020221,2]
[382204051,1756545040426,-480.0,0.00020227,2]
[382204052,1756545040435,-480.0,0.00020227,2]
[382204053,1756545040445,-480.0,0.00020227,2]
[382204054,1756545040455,-480.0,0.00020227,2]
[382204055,1756545040465,-480.0,0.00020227,2]
[382204056,1756545040474,-476.07858938,0.00020227,2]
[382204057,1756545040483,-1294.44,0.00020227,2]
[382204058,1756545040492,-480.0,0.00020227,2]
[382204059,1756545040501,-480.0,0.00020227,2]
[382204060,1756545040512,-480.0,0.00020227,2]
[382204061,1756545040521,-480.0,0.00020227,2]
[382204062,1756545040531,-480.0,0.00020227,2]
[382204063,1756545040541,-480.0,0.00020227,2]
[382204064,1756545040550,-480.0,0.00020227,2]
[382204065,1756545040559,-480.0,0.00020227,2]
[382204066,1756545040568,-480.0,0.00020227,2]
[382204067,1756545040577,-480.0,0.00020227,2]
[382204068,1756545040587,-480.0,0.00020227,2]
[382204069,1756545040596,-480.0,0.00020227,2]
[382204070,1756545040605,-480.0,0.00020227,2]
[382204071,1756545040614,-480.0,0.00020227,2]
[382204073,1756545040624,-481.41,0.00020227,2]
[382204074,1756545040635,-480.0,0.00020227,2]
[382204076,1756545040644,-480.0,0.00020227,2]
[382204078,1756545040654,-702.6,0.00020227,2]
[382204080,1756545040663,-480.0,0.00020227,2]
[382204081,1756545040672,-480.0,0.00020227,2]
[382204083,1756545040681,-480.0,0.00020227,2]
[382204085,1756545040691,-480.0,0.00020227,2]
[382204087,1756545040701,-480.0,0.00020227,2]
[382204089,1756545040710,-480.0,0.00020227,2]
[382204091,1756545040720,-480.0,0.00020227,2]
[382204093,1756545040730,-480.0,0.00020227,2]
[382204095,1756545040739,-480.0,0.00020227,2]
[382204097,1756545040749,-480.0,0.00020227,2]
[382204099,1756545040759,-480.0,0.00020227,2]
[382204101,1756545040768,-592.9,0.00020227,2]
[382204103,1756545040778,-480.0,0.00020227,2]
[382204105,1756545040787,-493.08,0.00020227,2]
[382204107,1756545040796,-779.87,0.00020227,2]
[382204109,1756545040805,-480.0,0.00020227,2]
[382204111,1756545040816,-480.0,0.00020227,2]
[382204113,1756545040825,-480.0,0.00020227,2]
[382204115,1756545040834,-480.0,0.00020227,2]
[382204117,1756545040844,-480.0,0.00020227,2]
[382204119,1756545040853,-480.0,0.00020227,2]
[382204121,1756545040865,-480.0,0.00020227,2]
[382204123,1756545040875,-563.22,0.00020227,2]
[382204125,1756545040885,-480.0,0.00020227,2]
[382204127,1756545040895,-480.0,0.00020227,2]
[382204129,1756545040903,-480.0,0.00020227,2]
[382204131,1756545040913,-480.0,0.00020227,2]
[382204133,1756545040922,-480.0,0.00020227,2]
[382204135,1756545040931,-412.3326806,0.00020227,2]
[382204137,1756545040940,-480.0,0.00020227,2]
[382204139,1756545040950,-480.0,0.00020227,2]
[382204141,1756545040960,-480.0,0.00020227,2]
[382204143,1756545040969,-573.18,0.00020227,2]
[382204145,1756545040979,-480.0,0.00020227,2]
[382204147,1756545040987,-757.91,0.00020227,2]
[382204149,1756545040997,-959.75,0.00020227,2]
[382204151,1756545041008,-480.0,0.00020227,2]
[382204153,1756545041018,-480.0,0.00020227,2]
[382204155,1756545041027,-938.81,0.00020227,2]
[382204157,1756545041037,-1178.15,0.00020227,2]
[382204159,1756545041047,-534.64,0.00020227,2]
[382204161,1756545041056,-1008.18,0.00020227,2]
[382204163,1756545041065,-480.0,0.00020227,2]
[382204165,1756545041077,-480.0,0.00020227,2]
[382204167,1756545041087,-958.76,0.00020227,2]
[382204169,1756545041099,-916.76,0.00020227,2]
[382204171,1756545041110,-480.0,0.00020227,2]
[382204173,1756545041120,-480.0,0.00020227,2]
[382204175,1756545041141,-480.0,0.00020227,2]
[382204177,1756545041167,-480.0,0.00020227,2]
[382204179,1756545041181,-480.0,0.00020227,2]
[382204181,1756545041196,-480.0,0.00020227,2]
[382204183,1756545041209,-480.0,0.00020227,2]
[382204185,1756545041219,-480.0,0.00020227,2]
[382204187,1756545041237,-480.0,0.00020227,2]
[382204189,1756545041247,-480.0,0.00020227,2]
[382204191,1756545041256,-480.0,0.00020227,2]
[382204193,1756545041266,-480.0,0.00020227,2]
[382204195,1756545041276,-480.0,0.00020227,2]
[382204197,1756545041285,-479.9981671,0.00020227,2]
[382204199,1756545041294,-484.42081262,0.00020227,2]
[382204201,1756545041312,-480.0,0.00020227,2]
[382204203,1756545041341,-480.0,0.00020227,2]
[382204205,1756545041356,-480.0,0.00020227,2]
[382204207,1756545041367,-480.0,0.00020227,2]
[382204208,1756545041377,-480.0,0.00020227,2]
[382204210,1756545041389,-480.0,0.00020227,2]
[382204212,1756545041398,-480.0,0.00020227,2]
[382204214,1756545041409,-480.0,0.00020227,2]
[382204216,1756545041419,-480.0,0.00020227,2]
[382204218,1756545041428,-480.0,0.00020227,2]
[382204220,1756545041437,-500.0,0.00020227,2]
[382204222,1756545041447,-480.0,0.00020227,2]
[382204224,1756545041456,-571.97,0.00020227,2]
[382204226,1756545041465,-961.24,0.00020227,2]
[382204228,1756545041475,-480.0,0.00020227,2]
[382204230,1756545041485,-510.28271754,0.00020227,2]
[382204232,1756545041495,-480.0,0.00020227,2]
[382204234,1756545041505,-1362.19,0.00020227,2]
[382204236,1756545041514,-480.0,0.00020227,2]
[382204238,1756545041524,-480.0,0.00020227,2]
[382204240,1756545041533,-480.0,0.00020227,2]
[382204242,1756545041543,-662.45,0.00020227,2]
[382204244,1756545041552,-480.0,0.00020227,2]
[382204246,1756545041561,-480.0,0.00020227,2]
[382204247,1756545041571,-365.18445844,0.00020227,2]
[382204249,1756545041580,-480.0,0.00020227,2]
[382204251,1756545041590,-1064.24,0.00020227,2]
[382204253,1756545041600,-1098.57,0.00020227,2]
[382204255,1756545041610,-480.0,0.00020227,2]
[382204257,1756545041619,-1147.69,0.00020227,2]
[382204259,1756545041629,-480.0,0.00020227,2]
[382204261,1756545041639,-480.0,0.00020227,2]
[382204263,1756545041652,-767.18,0.00020227,2]
[382204265,1756545041662,-480.0,0.00020227,2]
[382204267,1756545041671,-480.0,0.00020227,2]
[382204269,1756545041681,-480.0,0.00020227,2]
[382204271,1756545041691,-463.98294819,0.00020227,2]
[382204273,1756545041700,-1431.83,0.00020227,2]
[382204275,1756545041710,-551.14,0.00020227,2]
[382204277,1756545041720,-500.0,0.00020227,2]
[382204279,1756545041729,-480.0,0.00020227,2]
[382204281,1756545041739,-500.0,0.00020227,2]
[382204283,1756545041749,-1028.28,0.00020227,2]
[382204285,1756545041758,-500.0,0.00020227,2]
[382204287,1756545041768,-226.1162744,0.00020227,2]
[382204289,1756545041778,-480.0,0.00020227,2]
[382204291,1756545041787,-480.0,0.00020227,2]
[382204293,1756545041797,-1314.78,0.00020227,2]
[382204294,1756545041806,-480.0,0.00020227,2]
[382204296,1756545041815,-1536.64,0.00020227,2]
[382204298,1756545041825,-480.0,0.00020227,2]
[382204300,1756545041834,-480.0,0.00020227,2]
[382204302,1756545041844,-669.98,0.00020227,2]
[382204304,1756545041854,-480.0,0.00020227,2]
[382204306,1756545041866,-480.0,0.00020227,2]
[382204308,1756545041876,-545.59,0.00020227,2]
[382204310,1756545041887,-480.0,0.00020227,2]
[382204312,1756545041897,-480.0,0.00020227,2]
[382204314,1756545041907,-480.0,0.00020227,2]
[382204316,1756545041918,-909.33,0.00020227,2]
[382204318,1756545041927,-480.0,0.00020227,2]
[382204319,1756545041937,-480.0,0.00020227,2]
[382204321,1756545041946,-480.0,0.00020227,2]
[382204323,1756545041955,-480.0,0.00020227,2]
[382204325,1756545041964,-480.0,0.00020227,2]
[382204327,1756545041974,-480.0,0.00020227,2]
[382204329,1756545041984,-480.0,0.00020227,2]
[382204331,1756545041994,-480.0,0.00020227,2]
[382204332,1756545042003,-480.0,0.00020227,2]
[382204334,1756545042013,-480.0,0.00020227,2]
[382204336,1756545042022,-1150.94,0.00020227,2]
[382204338,1756545042031,-480.0,0.00020227,2]
[382204340,1756545042040,-480.0,0.00020227,2]
[382204342,1756545042049,-339.2082799,0.00020227,2]
[382204344,1756545042059,-1087.26,0.00020227,2]
[382204346,1756545042069,-480.0,0.00020227,2]
[382204348,1756545042078,-480.0,0.00020227,2]
[382204350,1756545042087,-480.0,0.00020227,2]
[382204352,1756545042097,-480.0,0.00020227,2]
[382204354,1756545042106,-480.0,0.00020227,2]
[382204355,1756545042116,-480.0,0.00020227,2]
[382204382,1756545042270,-480.0,0.00020227,2]
[382204385,1756545042304,-480.0,0.00020227,2]
[382204387,1756545042315,-480.0,0.00020227,2]
[382204389,1756545042325,-562.2,0.00020227,2]
[382204391,1756545042334,-913.46,0.00020227,2]
[382204393,1756545042343,-480.0,0.00020227,2]
[382204395,1756545042354,-480.0,0.00020227,2]
[382204399,1756545042363,-480.0,0.00020227,2]
[382204401,1756545042373,-480.0,0.00020227,2]
[382204404,1756545042382,-578.87,0.00020227,2]
[382204406,1756545042391,-480.0,0.00020227,2]
[382204409,1756545042400,-876.64,0.00020227,2]
[382204411,1756545042410,-480.0,0.00020228,2]
[382204413,1756545042419,-480.0,0.00020228,2]
[382204416,1756545042429,-480.0,0.00020228,2]
[382204417,1756545042439,-480.0,0.00020229,2]
[382204420,1756545042448,-974.43,0.00020229,2]
[382204423,1756545042458,-516.27,0.00020229,2]
[382204425,1756545042468,-480.0,0.00020229,2]
[382204428,1756545042478,-975.3,0.00020229,2]
[382204430,1756545042487,-1095.02,0.00020229,2]
[382204433,1756545042497,-480.0,0.00020229,2]
[382204435,1756545042506,-996.81,0.00020229,2]
[382204437,1756545042516,-4345.5,0.00020229,2]
[382204439,1756545042526,-1627.83,0.00020229,2]
[382204441,1756545042535,-5681.98,0.00020229,2]
[382204443,1756545042545,-480.0,0.00020229,2]
[382204445,1756545042554,-1207.29,0.00020229,2]
[382204447,1756545042564,-480.0,0.00020229,2]
[382204449,1756545042573,-3870.65,0.00020229,2]
[382204451,1756545042582,-5431.25,0.00020229,2]
[382204452,1756545042592,-2134.74,0.00020229,2]
[382204454,1756545042601,-500.0,0.0002023,2]
[382204456,1756545042611,-500.0,0.0002023,2]
[382204458,1756545042622,-933.53,0.00020231,2]
[382204460,1756545042631,-1033.26,0.00020231,2]
[382204462,1756545042641,-619.5,0.00020231,2]
[382204464,1756545042650,-1144.27,0.00020231,2]
[382204466,1756545042660,-480.0,0.00020231,2]
[382204468,1756545042669,-3671.15,0.00020231,2]
[382204470,1756545042679,-2561.69,0.00020231,2]
[382204472,1756545042687,-342.39741091,0.00020231,2]
[382204474,1756545042697,-500.0,0.00020231,2]
[382204476,1756545042707,-553.63,0.00020231,2]
[382204478,1756545042716,-1061.52,0.00020231,2]
[382204480,1756545042725,-904.9,0.00020231,2]
[382204482,1756545042735,-1180.08,0.00020231,2]
[382204484,1756545042744,-798.29,0.00020231,2]
[382204486,1756545042753,-480.0,0.00020232,2]
[382204488,1756545042763,-682.28,0.00020232,2]
[382204490,1756545042772,-483.41,0.00020232,2]
[382204491,1756545042782,-1262.46,0.00020232,2]
[382204493,1756545042791,-480.0,0.00020232,2]
[382204495,1756545042800,-480.0,0.00020232,2]
[382204497,1756545042810,-480.0,0.00020232,2]
[382204499,1756545042820,-689.57,0.00020232,2]
[382204501,1756545042829,-1003.12,0.00020232,2]
[382204503,1756545042838,-480.0,0.00020232,2]
[382204505,1756545042848,-1371.06,0.00020232,2]
[382204507,1756545042858,-480.0,0.00020232,2]
[382204509,1756545042869,-480.0,0.00020232,2]
[382204511,1756545042878,-480.0,0.00020232,2]
[382204513,1756545042888,-695.19,0.00020232,2]
[382204515,1756545042898,-480.0,0.00020232,2]
[382204517,1756545042907,-480.0,0.00020232,2]
[382204519,1756545042917,-480.0,0.00020232,2]
[382204521,1756545042927,-480.0,0.00020232,2]
[382204523,1756545042937,-1300.59,0.00020232,2]
[382204525,1756545042947,-480.0,0.00020232,2]
[382204527,1756545042956,-480.0,0.00020232,2]
[382204529,1756545042966,-1467.86,0.00020232,2]
[382204531,1756545042976,-480.0,0.00020232,2]
[382204534,1756545042985,-480.0,0.00020232,2]
[382204537,1756545042995,-480.0,0.00020232,2]
[382204540,1756545043004,-1267.49,0.00020232,2]
[382204543,1756545043013,-748.65,0.00020232,2]
[382204546,1756545043023,-480.0,0.00020232,2]
[382204549,1756545043032,-1042.68,0.00020232,2]
[382204551,1756545043041,-480.0,0.00020232,2]
[382204553,1756545043050,-480.0,0.00020232,2]
[382204555,1756545043059,-480.0,0.00020232,2]
[382204557,1756545043068,-480.0,0.00020232,2]
[382204559,1756545043078,-668.82,0.00020232,2]
[382204561,1756545043087,-1101.43,0.00020232,2]
[382204563,1756545043097,-485.99501275,0.00020232,2]
[382204565,1756545043106,-559.66,0.00020232,2]
[382204567,1756545043115,-480.0,0.00020232,2]
[382204569,1756545043124,-1117.28,0.00020232,2]
[382204571,1756545043133,-1069.65,0.00020232,2]
[382204573,1756545043143,-1641.43,0.00020232,2]
[382204575,1756545043152,-480.0,0.00020232,2]
[382204577,1756545043161,-1304.92,0.00020232,2]
[382204579,1756545043171,-1189.34,0.00020232,2]
[382204581,1756545043182,-480.0,0.00020232,2]
[382204582,1756545043191,-480.0,0.00020232,2]
[382204583,1756545043201,-1100.97,0.00020232,2]
[382204584,1756545043211,-480.0,0.00020232,2]
[382204585,1756545043220,-480.0,0.00020232,2]
[382204586,1756545043230,-1523.61,0.00020232,2]
[382204587,1756545043240,-503.70511732,0.00020232,2]
[382204588,1756545043249,-480.0,0.00020232,2]
[382204589,1756545043259,-480.0,0.00020232,2]
[382204590,1756545043268,-480.0,0.00020232,2]
[382204591,1756545043278,-267.25014861,0.00020232,2]
[382204592,1756545043287,-511.65,0.00020232,2]
[382204594,1756545043297,-481.46913676,0.00020232,2]
[382204595,1756545043308,-480.0,0.00020232,2]
[382204597,1756545043318,-577.94,0.00020232,2]
[382204599,1756545043327,-480.0,0.00020232,2]
[382204601,1756545043336,-1721.82,0.00020232,2]
[382204603,1756545043346,-1210.64,0.00020232,2]
[382204605,1756545043357,-480.0,0.00020232,2]
[382204607,1756545043367,-480.0,0.00020232,2]
[382204609,1756545043377,-621.9,0.00020232,2]
[382204611,1756545043386,-552.15,0.00020232,2]
[382204613,1756545043397,-480.0,0.00020234,2]
[382204615,1756545043407,-480.0,0.00020234,2]
[382204617,1756545043416,-480.0,0.00020234,2]
[382204620,1756545043426,-480.0,0.00020234,2]
[382204622,1756545043436,-480.0,0.00020234,2]
[382204624,1756545043446,-480.0,0.00020234,2]
[382204626,1756545043455,-480.0,0.00020234,2]
[382204628,1756545043465,-480.0,0.00020234,2]
[382204630,1756545043475,-480.0,0.00020234,2]
[382204632,1756545043484,-480.0,0.00020234,2]